[Event "December 12 Early 2023"]
[Site "https://www.chess.com"]
[Date "2023.12.12"]
[Round "6"]
[White "Golubenko, Valentina"]
[Black "Coro, Lucas"]
[Result "0-1"]
[Board "188"]
[TimeControl "180+1"]
[WhiteFideId "4501993"]
[BlackFideId "147222"]
[WhiteElo "2240"]
[BlackElo "2504"]
[WhiteTeam "CRO"]
[BlackTeam "ARG"]
[WhiteClock "0:00:07"]
[BlackClock "0:00:05"]

1. e4 {[%clk 0:03:00]}  c6 {[%clk 0:02:58]} 2. d4 {[%clk 0:02:59]}  d5 {[%clk 0:02:59]} 3. e5 {[%clk 0:02:59]}  Bf5 {[%clk 0:02:58]} 4. Nf3 {[%clk 0:02:58]}  e6 {[%clk 0:02:58]} 5. Be2 {[%clk 0:02:56]}  Nd7 {[%clk 0:02:59]} 6. O-O {[%clk 0:02:56]}  Bg6 {[%clk 0:02:53]} 7. c4 {[%clk 0:02:56]}  dxc4 {[%clk 0:02:50]} 8. Nc3 {[%clk 0:02:56]}  Nb6 {[%clk 0:02:49]} 9. a4 {[%clk 0:02:55]}  a5 {[%clk 0:02:47]} 10. b3 {[%clk 0:02:52]}  Bb4 {[%clk 0:02:14]} 11. Bd2 {[%clk 0:02:45]}  cxb3 {[%clk 0:02:13]} 12. Qxb3 {[%clk 0:02:44]}  Ne7 {[%clk 0:02:08]} 13. Nh4 {[%clk 0:02:42]}  O-O {[%clk 0:02:06]} 14. Nxg6 {[%clk 0:02:42]}  hxg6 {[%clk 0:01:53]} 15. Be3 {[%clk 0:02:36]}  Nf5 {[%clk 0:01:43]} 16. Rfd1 {[%clk 0:02:30]}  Bxc3 {[%clk 0:01:33]} 17. Qxc3 {[%clk 0:02:29]}  Nd5 {[%clk 0:01:33]} 18. Qb3 {[%clk 0:02:28]}  Rb8 {[%clk 0:01:10]} 19. Rab1 {[%clk 0:02:24]}  Qe7 {[%clk 0:01:00]} 20. h3 {[%clk 0:02:08]}  Rfd8 {[%clk 0:00:59]} 21. Bd3 {[%clk 0:02:07]}  Nfxe3 {[%clk 0:00:58]} 22. fxe3 {[%clk 0:02:07]}  Nxe3 {[%clk 0:00:57]} 23. Re1 {[%clk 0:02:05]}  Nd5 {[%clk 0:00:54]} 24. Rbc1 {[%clk 0:01:56]}  Qg5 {[%clk 0:00:52]} 25. Be4 {[%clk 0:01:46]}  Nb4 {[%clk 0:00:48]} 26. Rc5 {[%clk 0:01:32]}  Rxd4 {[%clk 0:00:43]} 27. Rxa5 {[%clk 0:01:32]}  Qd2 {[%clk 0:00:39]} 28. Qe3 {[%clk 0:01:25]}  Qb2 {[%clk 0:00:21]} 29. Ra7 {[%clk 0:01:15]}  c5 {[%clk 0:00:17]} 30. Rb1 {[%clk 0:01:04]}  Nc2 {[%clk 0:00:15]} 31. Rxb2 {[%clk 0:01:00]}  Nxe3 {[%clk 0:00:14]} 32. Raxb7 {[%clk 0:00:53]}  Rxb7 {[%clk 0:00:13]} 33. Bxb7 {[%clk 0:00:54]}  Rd1+ {[%clk 0:00:11]} 34. Kf2 {[%clk 0:00:51]}  Nc4 {[%clk 0:00:11]} 35. Rc2 {[%clk 0:00:50]}  Nxe5 {[%clk 0:00:11]} 36. a5 {[%clk 0:00:47]}  c4 {[%clk 0:00:10]} 37. a6 {[%clk 0:00:46]}  Ra1 {[%clk 0:00:10]} 38. Ke3 {[%clk 0:00:45]}  f6 {[%clk 0:00:10]} 39. Kd4 {[%clk 0:00:41]}  Kf7 {[%clk 0:00:08]} 40. Rb2 {[%clk 0:00:35]}  Ke7 {[%clk 0:00:06]} 41. Bc8 {[%clk 0:00:35]}  Kd6 {[%clk 0:00:07]} 42. Rb6+ {[%clk 0:00:31]}  Kc7 {[%clk 0:00:07]} 43. Rxe6 {[%clk 0:00:25]}  Kxc8 {[%clk 0:00:06]} 44. g4 {[%clk 0:00:23]}  Kd7 {[%clk 0:00:05]} 45. Rb6 {[%clk 0:00:22]}  Kc7 {[%clk 0:00:06]} 46. Rb7+ {[%clk 0:00:22]}  Kc6 {[%clk 0:00:06]} 47. Rxg7 {[%clk 0:00:22]}  Rxa6 {[%clk 0:00:05]} 48. g5 {[%clk 0:00:23]}  fxg5 {[%clk 0:00:02]} 49. Kxe5 {[%clk 0:00:22]}  Kc5 {[%clk 0:00:02]} 50. Rf7 {[%clk 0:00:16]}  c3 {[%clk 0:00:03]} 51. Rf1 {[%clk 0:00:14]}  Kc4 {[%clk 0:00:03]} 52. Ke4 {[%clk 0:00:13]}  c2 {[%clk 0:00:02]} 53. Rc1 {[%clk 0:00:12]}  Kc3 {[%clk 0:00:03]} 54. Kf3 {[%clk 0:00:11]}  Kd2 {[%clk 0:00:04]} 55. Rxc2+ {[%clk 0:00:11]}  Kxc2 {[%clk 0:00:05]} 56. Kg4 {[%clk 0:00:07]}  Ra5 {[%clk 0:00:05]} 0-1

[Event "December 12 Early 2023"]
[Site "https://www.chess.com"]
[Date "2023.12.12"]
[Round "6"]
[White "Shubhi Gupta"]
[Black "Olcayoz, Gizem"]
[Result "1/2-1/2"]
[Board "192"]
[TimeControl "180+1"]
[WhiteFideId "25195425"]
[BlackFideId "6301444"]
[WhiteElo "2287"]
[BlackElo "2022"]
[WhiteTeam "IND"]
[BlackTeam "TUR"]
[WhiteClock "0:00:58"]
[BlackClock "0:00:24"]

1. d4 {[%clk 0:02:57]}  e6 {[%clk 0:03:00]} 2. e4 {[%clk 0:02:57]}  d5 {[%clk 0:02:59]} 3. Nc3 {[%clk 0:02:54]}  Bb4 {[%clk 0:02:58]} 4. exd5 {[%clk 0:02:53]}  exd5 {[%clk 0:02:58]} 5. Bd3 {[%clk 0:02:50]}  Nc6 {[%clk 0:02:57]} 6. Nf3 {[%clk 0:02:49]}  Bg4 {[%clk 0:02:57]} 7. O-O {[%clk 0:02:45]}  Bxc3 {[%clk 0:02:53]} 8. bxc3 {[%clk 0:02:44]}  Nge7 {[%clk 0:02:53]} 9. Re1 {[%clk 0:02:44]}  Qd6 {[%clk 0:02:47]} 10. a4 {[%clk 0:02:42]}  O-O-O {[%clk 0:02:37]} 11. Ba3 {[%clk 0:02:40]}  Qf6 {[%clk 0:02:35]} 12. Be2 {[%clk 0:02:30]}  h5 {[%clk 0:02:29]} 13. Ne5 {[%clk 0:02:11]}  Nxe5 {[%clk 0:02:15]} 14. dxe5 {[%clk 0:02:09]}  Qe6 {[%clk 0:02:10]} 15. Bxg4 {[%clk 0:02:01]}  hxg4 {[%clk 0:02:11]} 16. Bxe7 {[%clk 0:01:49]}  Qxe7 {[%clk 0:02:09]} 17. Qxg4+ {[%clk 0:01:48]}  Kb8 {[%clk 0:02:09]} 18. Qb4 {[%clk 0:01:44]}  Qg5 {[%clk 0:01:53]} 19. Rab1 {[%clk 0:01:41]}  b6 {[%clk 0:01:49]} 20. a5 {[%clk 0:01:37]}  Rh4 {[%clk 0:01:48]} 21. Qb5 {[%clk 0:01:34]}  Rdh8 {[%clk 0:01:35]} 22. axb6 {[%clk 0:01:30]}  axb6 {[%clk 0:01:30]} 23. Qxd5 {[%clk 0:01:19]}  Rxh2 {[%clk 0:01:29]} 24. g3 {[%clk 0:01:19]}  Qh5 {[%clk 0:01:05]} 25. Ra1 {[%clk 0:01:11]}  Rh1+ {[%clk 0:01:01]} 26. Kg2 {[%clk 0:01:11]}  Rh2+ {[%clk 0:00:30]} 27. Kg1 {[%clk 0:01:05]}  Rh1+ {[%clk 0:00:29]} 28. Kg2 {[%clk 0:01:05]}  Rh2+ {[%clk 0:00:24]} 29. Kg1 {[%clk 0:00:58]} 1/2-1/2

[Event "December 12 Early 2023"]
[Site "https://www.chess.com"]
[Date "2023.12.12"]
[Round "7"]
[White "Tologon tegin, Semetei"]
[Black "Martinez Alcantara, Jose Eduardo"]
[Result "0-1"]
[Board "1"]
[TimeControl "180+1"]
[WhiteFideId "13800574"]
[BlackFideId "3805662"]
[WhiteElo "2665"]
[BlackElo "3035"]
[WhiteTeam "KGZ"]
[BlackTeam "PER"]
[WhiteClock "0:00:02"]
[BlackClock "0:00:36"]

1. d4 {[%clk 0:03:00]}  Nf6 {[%clk 0:02:58]} 2. Nc3 {[%clk 0:03:01]}  e6 {[%clk 0:02:59]} 3. Bf4 {[%clk 0:03:01]}  Bb4 {[%clk 0:02:58]} 4. a3 {[%clk 0:02:57]}  Bxc3+ {[%clk 0:02:55]} 5. bxc3 {[%clk 0:02:58]}  d6 {[%clk 0:02:56]} 6. Nf3 {[%clk 0:02:56]}  Qe7 {[%clk 0:02:55]} 7. e3 {[%clk 0:02:55]}  Nbd7 {[%clk 0:02:51]} 8. h3 {[%clk 0:02:53]}  b6 {[%clk 0:02:51]} 9. Bh2 {[%clk 0:02:51]}  Bb7 {[%clk 0:02:51]} 10. Bd3 {[%clk 0:02:51]}  Ne4 {[%clk 0:02:49]} 11. c4 {[%clk 0:02:49]}  f5 {[%clk 0:02:49]} 12. a4 {[%clk 0:02:45]}  a5 {[%clk 0:02:49]} 13. O-O {[%clk 0:02:41]}  O-O {[%clk 0:02:49]} 14. Nd2 {[%clk 0:02:35]}  Nxd2 {[%clk 0:02:42]} 15. Qxd2 {[%clk 0:02:34]}  e5 {[%clk 0:02:42]} 16. Rab1 {[%clk 0:02:23]}  Kh8 {[%clk 0:02:36]} 17. c3 {[%clk 0:02:06]}  Bc6 {[%clk 0:02:34]} 18. Ra1 {[%clk 0:02:01]}  Rae8 {[%clk 0:02:33]} 19. Rfe1 {[%clk 0:01:52]}  Qf6 {[%clk 0:02:29]} 20. c5 {[%clk 0:01:08]}  dxc5 {[%clk 0:02:16]} 21. Bb5 {[%clk 0:01:04]}  Bxb5 {[%clk 0:02:03]} 22. axb5 {[%clk 0:01:05]}  Rd8 {[%clk 0:02:04]} 23. Rad1 {[%clk 0:00:57]}  h6 {[%clk 0:01:58]} 24. Qb2 {[%clk 0:00:51]}  f4 {[%clk 0:01:45]} 25. dxe5 {[%clk 0:00:50]}  Nxe5 {[%clk 0:01:46]} 26. Qc2 {[%clk 0:00:26]}  f3 {[%clk 0:01:14]} 27. Bxe5 {[%clk 0:00:21]}  Qxe5 {[%clk 0:01:12]} 28. g3 {[%clk 0:00:20]}  c4 {[%clk 0:01:01]} 29. Rd4 {[%clk 0:00:19]}  Rxd4 {[%clk 0:00:59]} 30. cxd4 {[%clk 0:00:18]}  Qxb5 {[%clk 0:01:00]} 31. Rc1 {[%clk 0:00:18]}  a4 {[%clk 0:00:52]} 32. Qa2 {[%clk 0:00:18]}  Qb3 {[%clk 0:00:51]} 33. Qd2 {[%clk 0:00:16]}  a3 {[%clk 0:00:48]} 34. d5 {[%clk 0:00:15]}  a2 {[%clk 0:00:44]} 35. Ra1 {[%clk 0:00:15]}  Ra8 {[%clk 0:00:41]} 36. Kh2 {[%clk 0:00:15]}  c3 {[%clk 0:00:36]} 37. Qd4 {[%clk 0:00:14]}  Qb2 {[%clk 0:00:35]} 38. d6 {[%clk 0:00:11]}  Qxf2+ {[%clk 0:00:35]} 39. Kh1 {[%clk 0:00:02]}  Qg2# {[%clk 0:00:36]} 0-1

[Event "December 12 Early 2023"]
[Site "https://www.chess.com"]
[Date "2023.12.12"]
[Round "7"]
[White "Andreikin, Dmitry"]
[Black "Paravyan, David"]
[Result "1-0"]
[Board "2"]
[TimeControl "180+1"]
[WhiteFideId "4158814"]
[BlackFideId "4194985"]
[WhiteElo "3096"]
[BlackElo "3029"]
[WhiteTeam "FID"]
[BlackTeam "FID"]
[WhiteClock "0:00:05"]
[BlackClock "0:00:04"]

1. d4 {[%clk 0:03:00]}  Nf6 {[%clk 0:02:58]} 2. c4 {[%clk 0:03:00]}  e6 {[%clk 0:02:58]} 3. Nf3 {[%clk 0:02:57]}  d5 {[%clk 0:02:58]} 4. Bg5 {[%clk 0:02:57]}  dxc4 {[%clk 0:02:57]} 5. e4 {[%clk 0:02:57]}  c5 {[%clk 0:02:51]} 6. Nc3 {[%clk 0:02:56]}  cxd4 {[%clk 0:02:48]} 7. Qxd4 {[%clk 0:02:57]}  Qxd4 {[%clk 0:02:47]} 8. Nxd4 {[%clk 0:02:58]}  h6 {[%clk 0:02:41]} 9. Bh4 {[%clk 0:02:51]}  a6 {[%clk 0:02:39]} 10. Bxc4 {[%clk 0:02:49]}  Bc5 {[%clk 0:02:34]} 11. Nb3 {[%clk 0:02:45]}  Ba7 {[%clk 0:02:33]} 12. f3 {[%clk 0:02:34]}  Nc6 {[%clk 0:02:32]} 13. Bf2 {[%clk 0:02:24]}  Ne5 {[%clk 0:02:22]} 14. Be2 {[%clk 0:02:23]}  Bd7 {[%clk 0:02:17]} 15. Rc1 {[%clk 0:02:18]}  Bxf2+ {[%clk 0:02:06]} 16. Kxf2 {[%clk 0:02:18]}  Ke7 {[%clk 0:02:06]} 17. f4 {[%clk 0:01:53]}  Neg4+ {[%clk 0:02:06]} 18. Kg3 {[%clk 0:01:50]}  h5 {[%clk 0:02:07]} 19. h3 {[%clk 0:01:49]}  h4+ {[%clk 0:02:06]} 20. Kf3 {[%clk 0:01:49]}  Nh6 {[%clk 0:02:06]} 21. Na5 {[%clk 0:01:36]}  b6 {[%clk 0:01:57]} 22. Nc4 {[%clk 0:01:36]}  Bc6 {[%clk 0:01:51]} 23. Nxb6 {[%clk 0:01:01]}  Rab8 {[%clk 0:01:50]} 24. Nc4 {[%clk 0:00:54]}  Nf5 {[%clk 0:01:51]} 25. Rhd1 {[%clk 0:00:53]}  Ng3 {[%clk 0:01:49]} 26. Bd3 {[%clk 0:00:50]}  Rhd8 {[%clk 0:01:05]} 27. Ke3 {[%clk 0:00:50]}  Ba8 {[%clk 0:00:43]} 28. b3 {[%clk 0:00:42]}  Nd5+ {[%clk 0:00:39]} 29. exd5 {[%clk 0:00:38]}  exd5 {[%clk 0:00:40]} 30. Kf2 {[%clk 0:00:25]}  dxc4 {[%clk 0:00:39]} 31. Bxc4 {[%clk 0:00:26]}  a5 {[%clk 0:00:33]} 32. Ne2 {[%clk 0:00:13]}  Ne4+ {[%clk 0:00:32]} 33. Ke3 {[%clk 0:00:13]}  Nd6 {[%clk 0:00:32]} 34. Kf2 {[%clk 0:00:10]}  Nxc4 {[%clk 0:00:25]} 35. Rxd8 {[%clk 0:00:08]}  Rxd8 {[%clk 0:00:26]} 36. Rxc4 {[%clk 0:00:08]}  Rd2 {[%clk 0:00:26]} 37. Ra4 {[%clk 0:00:08]}  Bxg2 {[%clk 0:00:14]} 38. Kxg2 {[%clk 0:00:09]}  Rxe2+ {[%clk 0:00:14]} 39. Kf3 {[%clk 0:00:09]}  Rh2 {[%clk 0:00:13]} 40. Kg4 {[%clk 0:00:10]}  Rg2+ {[%clk 0:00:10]} 41. Kxh4 {[%clk 0:00:10]}  g6 {[%clk 0:00:11]} 42. Rxa5 {[%clk 0:00:09]}  Kf6 {[%clk 0:00:09]} 43. a4 {[%clk 0:00:09]}  Kg7 {[%clk 0:00:09]} 44. Rg5 {[%clk 0:00:07]}  Rb2 {[%clk 0:00:05]} 45. Rb5 {[%clk 0:00:07]}  Rg2 {[%clk 0:00:03]} 46. Rb7 {[%clk 0:00:06]}  Rg1 {[%clk 0:00:02]} 47. a5 {[%clk 0:00:06]}  Rg2 {[%clk 0:00:02]} 48. a6 {[%clk 0:00:06]}  Kf6 {[%clk 0:00:02]} 49. a7 {[%clk 0:00:06]}  Ra2 {[%clk 0:00:02]} 50. b4 {[%clk 0:00:06]}  Ke6 {[%clk 0:00:01]} 51. b5 {[%clk 0:00:06]}  f6 {[%clk 0:00:02]} 52. b6 {[%clk 0:00:05]}  Ra3 {[%clk 0:00:02]} 53. Rg7 {[%clk 0:00:03]}  Kf5 {[%clk 0:00:02]} 54. b7 {[%clk 0:00:04]}  g5+ {[%clk 0:00:01]} 55. fxg5 {[%clk 0:00:03]}  Ra4+ {[%clk 0:00:02]} 56. Kh5 {[%clk 0:00:04]}  Ra3 {[%clk 0:00:02]} 57. h4 {[%clk 0:00:03]}  Rxa7 {[%clk 0:00:03]} 58. b8=Q {[%clk 0:00:03]}  Rxg7 {[%clk 0:00:04]} 59. Qb5+ {[%clk 0:00:03]}  Ke6 {[%clk 0:00:04]} 60. Qb6+ {[%clk 0:00:03]}  Kf7 {[%clk 0:00:05]} 61. Qxf6+ {[%clk 0:00:04]}  Kg8 {[%clk 0:00:04]} 62. Qxg7+ {[%clk 0:00:05]} 1-0

[Event "December 12 Early 2023"]
[Site "https://www.chess.com"]
[Date "2023.12.12"]
[Round "7"]
[White "Xiong, Jeffery"]
[Black "Drygalov, Sergey"]
[Result "1/2-1/2"]
[Board "3"]
[TimeControl "180+1"]
[WhiteFideId "2047640"]
[BlackFideId "24171743"]
[WhiteElo "3051"]
[BlackElo "3013"]
[WhiteTeam "USA"]
[BlackTeam "RUS"]
[WhiteClock "0:00:05"]
[BlackClock "0:00:31"]

1. d4 {[%clk 0:03:00]}  d5 {[%clk 0:02:58]} 2. c4 {[%clk 0:03:01]}  c6 {[%clk 0:02:59]} 3. Nf3 {[%clk 0:03:01]}  Nf6 {[%clk 0:03:00]} 4. cxd5 {[%clk 0:03:02]}  cxd5 {[%clk 0:03:00]} 5. Nc3 {[%clk 0:03:03]}  Nc6 {[%clk 0:03:01]} 6. Bf4 {[%clk 0:03:03]}  Nh5 {[%clk 0:02:57]} 7. Bd2 {[%clk 0:03:03]}  Nf6 {[%clk 0:02:58]} 8. Bf4 {[%clk 0:03:03]}  Nh5 {[%clk 0:02:58]} 9. Bd2 {[%clk 0:03:03]}  Nf6 {[%clk 0:02:59]} 10. Rc1 {[%clk 0:03:04]}  Bf5 {[%clk 0:02:56]} 11. Ne5 {[%clk 0:01:43]}  e6 {[%clk 0:02:47]} 12. Qa4 {[%clk 0:01:32]}  Qb6 {[%clk 0:02:12]} 13. e4 {[%clk 0:01:30]}  dxe4 {[%clk 0:01:57]} 14. Bb5 {[%clk 0:01:30]}  Rc8 {[%clk 0:01:57]} 15. O-O {[%clk 0:01:29]}  a6 {[%clk 0:01:36]} 16. Bxc6+ {[%clk 0:01:25]}  bxc6 {[%clk 0:01:37]} 17. Nd1 {[%clk 0:01:00]}  Qb5 {[%clk 0:01:16]} 18. Qxb5 {[%clk 0:00:56]}  axb5 {[%clk 0:01:17]} 19. Ne3 {[%clk 0:00:56]}  Bd6 {[%clk 0:01:11]} 20. Nxc6 {[%clk 0:00:51]}  Kd7 {[%clk 0:01:06]} 21. Ne5+ {[%clk 0:00:50]}  Bxe5 {[%clk 0:01:07]} 22. dxe5 {[%clk 0:00:51]}  Nd5 {[%clk 0:01:07]} 23. Rcd1 {[%clk 0:00:45]}  Kc6 {[%clk 0:00:53]} 24. Nxd5 {[%clk 0:00:39]}  exd5 {[%clk 0:00:54]} 25. Bb4 {[%clk 0:00:39]}  Be6 {[%clk 0:00:51]} 26. f3 {[%clk 0:00:35]}  Kb6 {[%clk 0:00:42]} 27. fxe4 {[%clk 0:00:32]}  dxe4 {[%clk 0:00:43]} 28. a3 {[%clk 0:00:33]}  Rc4 {[%clk 0:00:40]} 29. Rd6+ {[%clk 0:00:29]}  Kb7 {[%clk 0:00:40]} 30. Bc3 {[%clk 0:00:26]}  Rhc8 {[%clk 0:00:40]} 31. Kf2 {[%clk 0:00:22]}  R8c6 {[%clk 0:00:38]} 32. Rxc6 {[%clk 0:00:20]}  Kxc6 {[%clk 0:00:35]} 33. Ke3 {[%clk 0:00:20]}  g6 {[%clk 0:00:31]} 34. Rd1 {[%clk 0:00:21]}  Kb7 {[%clk 0:00:31]} 35. Rf1 {[%clk 0:00:16]}  h5 {[%clk 0:00:31]} 36. Rf4 {[%clk 0:00:13]}  Kc6 {[%clk 0:00:30]} 37. Rxe4 {[%clk 0:00:09]}  Rxe4+ {[%clk 0:00:30]} 38. Kxe4 {[%clk 0:00:10]}  Bd5+ {[%clk 0:00:31]} 39. Kf4 {[%clk 0:00:11]}  Bxg2 {[%clk 0:00:31]} 40. Kg5 {[%clk 0:00:11]}  Bd5 {[%clk 0:00:31]} 41. h4 {[%clk 0:00:05]}  Be6 {[%clk 0:00:31]} 1/2-1/2

[Event "December 12 Early 2023"]
[Site "https://www.chess.com"]
[Date "2023.12.12"]
[Round "7"]
[White "Shankland, Sam"]
[Black "Aronian, Levon"]
[Result "1/2-1/2"]
[Board "4"]
[TimeControl "180+1"]
[WhiteFideId "2004887"]
[BlackFideId "13300474"]
[WhiteElo "2939"]
[BlackElo "3118"]
[WhiteTeam "USA"]
[BlackTeam "USA"]
[WhiteClock "0:00:10"]
[BlackClock "0:00:08"]

1. d4 {[%clk 0:03:00]}  Nf6 {[%clk 0:02:59]} 2. c4 {[%clk 0:03:00]}  g6 {[%clk 0:02:59]} 3. Nc3 {[%clk 0:02:58]}  Bg7 {[%clk 0:03:00]} 4. e4 {[%clk 0:02:57]}  O-O {[%clk 0:03:00]} 5. Nf3 {[%clk 0:02:58]}  d6 {[%clk 0:03:00]} 6. Be2 {[%clk 0:02:58]}  e5 {[%clk 0:02:59]} 7. Be3 {[%clk 0:02:58]}  Ng4 {[%clk 0:02:50]} 8. Bg5 {[%clk 0:02:58]}  f6 {[%clk 0:02:51]} 9. Bc1 {[%clk 0:02:58]}  Nc6 {[%clk 0:02:46]} 10. O-O {[%clk 0:02:57]}  exd4 {[%clk 0:02:31]} 11. Nxd4 {[%clk 0:02:56]}  Nxd4 {[%clk 0:02:24]} 12. Qxd4 {[%clk 0:02:55]}  f5 {[%clk 0:02:24]} 13. Qd5+ {[%clk 0:02:53]}  Rf7 {[%clk 0:02:10]} 14. exf5 {[%clk 0:02:46]}  Bxf5 {[%clk 0:01:27]} 15. h3 {[%clk 0:02:26]}  Ne5 {[%clk 0:01:15]} 16. Be3 {[%clk 0:02:22]}  c6 {[%clk 0:00:53]} 17. Qd2 {[%clk 0:02:21]}  Qh4 {[%clk 0:00:51]} 18. Bg5 {[%clk 0:02:19]}  Nxc4 {[%clk 0:00:47]} 19. Qc1 {[%clk 0:02:04]}  Qd4 {[%clk 0:00:33]} 20. Rd1 {[%clk 0:02:04]}  Qc5 {[%clk 0:00:32]} 21. Na4 {[%clk 0:01:57]}  Qa5 {[%clk 0:00:32]} 22. Bxc4 {[%clk 0:01:53]}  d5 {[%clk 0:00:32]} 23. Bb3 {[%clk 0:01:52]}  Re8 {[%clk 0:00:32]} 24. Nc3 {[%clk 0:01:50]}  Be6 {[%clk 0:00:24]} 25. Be3 {[%clk 0:01:40]}  Qd8 {[%clk 0:00:18]} 26. Qd2 {[%clk 0:01:38]}  Be5 {[%clk 0:00:15]} 27. Ne4 {[%clk 0:01:28]}  Rf5 {[%clk 0:00:08]} 28. f4 {[%clk 0:00:58]}  Bb8 {[%clk 0:00:05]} 29. Ng5 {[%clk 0:00:49]}  Bd7 {[%clk 0:00:03]} 30. Re1 {[%clk 0:00:47]}  Ref8 {[%clk 0:00:04]} 31. g3 {[%clk 0:00:43]}  Qc7 {[%clk 0:00:02]} 32. h4 {[%clk 0:00:39]}  h6 {[%clk 0:00:02]} 33. Nf3 {[%clk 0:00:37]}  g5 {[%clk 0:00:02]} 34. hxg5 {[%clk 0:00:34]}  hxg5 {[%clk 0:00:03]} 35. Re2 {[%clk 0:00:31]}  gxf4 {[%clk 0:00:02]} 36. Bxf4 {[%clk 0:00:31]}  Qb6+ {[%clk 0:00:02]} 37. Be3 {[%clk 0:00:25]}  Qd8 {[%clk 0:00:03]} 38. Nd4 {[%clk 0:00:23]}  Rh5 {[%clk 0:00:03]} 39. Rh2 {[%clk 0:00:22]}  Rxh2 {[%clk 0:00:02]} 40. Qxh2 {[%clk 0:00:23]}  Qf6 {[%clk 0:00:03]} 41. Bc2 {[%clk 0:00:20]}  Rf7 {[%clk 0:00:04]} 42. Qg2 {[%clk 0:00:19]}  c5 {[%clk 0:00:04]} 43. Nb3 {[%clk 0:00:17]}  d4 {[%clk 0:00:04]} 44. Bd2 {[%clk 0:00:16]}  Bc6 {[%clk 0:00:04]} 45. Qh2 {[%clk 0:00:15]}  Qf3 {[%clk 0:00:04]} 46. Bd1 {[%clk 0:00:14]}  Qe4 {[%clk 0:00:04]} 47. Bh5 {[%clk 0:00:14]}  Rg7 {[%clk 0:00:03]} 48. Re1 {[%clk 0:00:13]}  Bxg3 {[%clk 0:00:02]} 49. Rxe4 {[%clk 0:00:14]}  Bxh2+ {[%clk 0:00:02]} 50. Kxh2 {[%clk 0:00:14]}  Bxe4 {[%clk 0:00:03]} 51. Nxc5 {[%clk 0:00:14]}  Rg2+ {[%clk 0:00:03]} 52. Kh3 {[%clk 0:00:15]}  Rxd2 {[%clk 0:00:04]} 53. Nxe4 {[%clk 0:00:15]}  Rxb2 {[%clk 0:00:04]} 54. Bd1 {[%clk 0:00:16]}  Kg7 {[%clk 0:00:03]} 55. Bb3 {[%clk 0:00:15]}  a5 {[%clk 0:00:03]} 56. Nc5 {[%clk 0:00:15]}  b5 {[%clk 0:00:03]} 57. Nd3 {[%clk 0:00:14]}  Kf6 {[%clk 0:00:04]} 58. Nxb2 {[%clk 0:00:14]}  a4 {[%clk 0:00:04]} 59. Bc2 {[%clk 0:00:12]}  Ke5 {[%clk 0:00:04]} 60. Nd3+ {[%clk 0:00:12]}  Ke4 {[%clk 0:00:05]} 61. Kg2 {[%clk 0:00:12]}  Ke3 {[%clk 0:00:05]} 62. Kf1 {[%clk 0:00:12]}  Kd2 {[%clk 0:00:06]} 63. Nb4 {[%clk 0:00:12]}  Kc3 {[%clk 0:00:06]} 64. a3 {[%clk 0:00:12]}  Kb2 {[%clk 0:00:07]} 65. Ke2 {[%clk 0:00:10]}  Kxa3 {[%clk 0:00:07]} 66. Nc6 {[%clk 0:00:10]}  Kb2 {[%clk 0:00:06]} 67. Nxd4 {[%clk 0:00:09]}  a3 {[%clk 0:00:06]} 68. Bb3 {[%clk 0:00:10]}  Kc3 {[%clk 0:00:07]} 69. Ke3 {[%clk 0:00:09]}  Kb2 {[%clk 0:00:06]} 70. Kd3 {[%clk 0:00:09]}  a2 {[%clk 0:00:07]} 71. Bxa2 {[%clk 0:00:09]}  Kxa2 {[%clk 0:00:08]} 72. Nxb5 {[%clk 0:00:10]} 1/2-1/2

[Event "December 12 Early 2023"]
[Site "https://www.chess.com"]
[Date "2023.12.12"]
[Round "7"]
[White "Le, Tuan Minh"]
[Black "Mitrabha, Guha"]
[Result "1-0"]
[Board "6"]
[TimeControl "180+1"]
[WhiteFideId "12401153"]
[BlackFideId "5057000"]
[WhiteElo "3073"]
[BlackElo "2914"]
[WhiteTeam "VIE"]
[BlackTeam "IND"]
[WhiteClock "0:00:25"]
[BlackClock "0:00:17"]

1. d4 {[%clk 0:02:58]}  Nf6 {[%clk 0:02:59]} 2. c4 {[%clk 0:02:58]}  c5 {[%clk 0:02:59]} 3. d5 {[%clk 0:02:57]}  e6 {[%clk 0:02:59]} 4. Nc3 {[%clk 0:02:56]}  d6 {[%clk 0:03:00]} 5. Nf3 {[%clk 0:02:55]}  a6 {[%clk 0:02:59]} 6. e4 {[%clk 0:02:52]}  exd5 {[%clk 0:02:56]} 7. exd5 {[%clk 0:02:53]}  g6 {[%clk 0:02:55]} 8. h3 {[%clk 0:02:52]}  Bg7 {[%clk 0:02:55]} 9. Bd3 {[%clk 0:02:53]}  O-O {[%clk 0:02:53]} 10. O-O {[%clk 0:02:53]}  Nbd7 {[%clk 0:02:54]} 11. Bf4 {[%clk 0:02:53]}  Qc7 {[%clk 0:02:54]} 12. Re1 {[%clk 0:02:52]}  Re8 {[%clk 0:02:54]} 13. Qd2 {[%clk 0:02:51]}  b6 {[%clk 0:02:48]} 14. a4 {[%clk 0:02:21]}  Bb7 {[%clk 0:02:41]} 15. b3 {[%clk 0:02:21]}  Rxe1+ {[%clk 0:02:37]} 16. Rxe1 {[%clk 0:02:21]}  Re8 {[%clk 0:02:38]} 17. Rxe8+ {[%clk 0:02:09]}  Nxe8 {[%clk 0:02:39]} 18. Qe1 {[%clk 0:02:06]}  Qd8 {[%clk 0:02:36]} 19. Ne4 {[%clk 0:02:02]}  Ndf6 {[%clk 0:02:29]} 20. Nfg5 {[%clk 0:01:45]}  Nxe4 {[%clk 0:02:12]} 21. Nxe4 {[%clk 0:01:45]}  Bc8 {[%clk 0:02:09]} 22. a5 {[%clk 0:01:28]}  bxa5 {[%clk 0:02:03]} 23. Bd2 {[%clk 0:01:28]}  Bf5 {[%clk 0:01:58]} 24. Bxa5 {[%clk 0:01:27]}  Qe7 {[%clk 0:01:57]} 25. Qe2 {[%clk 0:01:03]}  Qe5 {[%clk 0:01:50]} 26. Bc3 {[%clk 0:00:59]}  Qe7 {[%clk 0:01:44]} 27. Bxg7 {[%clk 0:00:57]}  Kxg7 {[%clk 0:01:45]} 28. Nxd6 {[%clk 0:00:44]}  Qxd6 {[%clk 0:01:17]} 29. Bxf5 {[%clk 0:00:44]}  Nf6 {[%clk 0:01:16]} 30. Bd3 {[%clk 0:00:44]}  h5 {[%clk 0:01:16]} 31. Qb2 {[%clk 0:00:43]}  h4 {[%clk 0:01:14]} 32. Be2 {[%clk 0:00:44]}  Qf4 {[%clk 0:01:08]} 33. Qa1 {[%clk 0:00:43]}  Qd6 {[%clk 0:01:06]} 34. Qa5 {[%clk 0:00:43]}  Nd7 {[%clk 0:00:59]} 35. Bf1 {[%clk 0:00:38]}  Nf6 {[%clk 0:00:57]} 36. Qc3 {[%clk 0:00:36]}  Kg8 {[%clk 0:00:52]} 37. Qe3 {[%clk 0:00:35]}  Nd7 {[%clk 0:00:44]} 38. Qg5 {[%clk 0:00:34]}  Qf6 {[%clk 0:00:38]} 39. Qxf6 {[%clk 0:00:34]}  Nxf6 {[%clk 0:00:39]} 40. Bd3 {[%clk 0:00:33]}  a5 {[%clk 0:00:39]} 41. g3 {[%clk 0:00:33]}  hxg3 {[%clk 0:00:37]} 42. fxg3 {[%clk 0:00:34]}  Ne8 {[%clk 0:00:38]} 43. Kf2 {[%clk 0:00:34]}  Kg7 {[%clk 0:00:36]} 44. Ke3 {[%clk 0:00:34]}  Kf6 {[%clk 0:00:36]} 45. h4 {[%clk 0:00:33]}  Ke5 {[%clk 0:00:36]} 46. g4 {[%clk 0:00:33]}  Nf6 {[%clk 0:00:33]} 47. Be2 {[%clk 0:00:32]}  Ng8 {[%clk 0:00:31]} 48. h5 {[%clk 0:00:31]}  g5 {[%clk 0:00:30]} 49. Bd3 {[%clk 0:00:31]}  Nh6 {[%clk 0:00:31]} 50. Bf5 {[%clk 0:00:30]}  Ng8 {[%clk 0:00:28]} 51. Kd2 {[%clk 0:00:30]}  Nh6 {[%clk 0:00:28]} 52. Bc8 {[%clk 0:00:30]}  Ng8 {[%clk 0:00:26]} 53. Kc2 {[%clk 0:00:31]}  Nh6 {[%clk 0:00:26]} 54. Kb2 {[%clk 0:00:31]}  f5 {[%clk 0:00:26]} 55. Bxf5 {[%clk 0:00:24]}  Nxf5 {[%clk 0:00:19]} 56. gxf5 {[%clk 0:00:25]}  g4 {[%clk 0:00:19]} 57. h6 {[%clk 0:00:26]}  Kf6 {[%clk 0:00:19]} 58. h7 {[%clk 0:00:24]}  Kg7 {[%clk 0:00:17]} 59. h8=Q+ {[%clk 0:00:25]} 1-0